Cogmind - Beta 14 @@@ ROGUE MODE // 2024.09.14 @ 17:22:22 Player: Dull Result: Destroyed by FO-U9G(R) with Subdweller Machine Gun Performance ------------- Evolutions (0) 0 Regions Visited (3) 600 Robots Destroyed (35) 175 Value Destroyed (759) 759 Prototype IDs (2) 40 Alien Tech Used (0) 0 Bonus (9) 9 TOTAL SCORE: 1583 Bonus ------- Follower Combat Kills 46 Friendly Fire -37 Cogmind --------- Core Integrity 0/250 Matter 298/300 Energy 229/250 System Corruption 1% Temperature Cool (0) Movement Treading (320) Ox2 Location -10/Subcaves Parts ------- > --- POWER (1) -------- Ion Engine > --- PROPULSION (2) --- Light Treads Light Treads > --- UTILITY (2) ------ Huge Storage Unit Makeshift Light Armor Plating > --- WEAPON (2) ------- Subdweller Beam Cannon Subdweller Machine Gun > --- INVENTORY (25) --- Ion Engine Ion Engine Ion Engine Spiked Treads Aluminum Leg Aluminum Leg Wheel Hover Unit Hover Unit Hover Unit Hover Unit Subdweller Optics Improved Terrain Scanner Light Armor Plating Makeshift System Shield Medium Laser Heavy Assault Rifle Battle Rifle Grenade Launcher Grenade Launcher Grenade Launcher Grenade Launcher Plasma Flamer Scrap Shield Fragment (49) Peak State ------------ > --- POWER ------------ Subdweller Power Source > --- PROPULSION ------- Light Treads Light Treads > --- UTILITY ---------- Huge Storage Unit Makeshift Light Armor Plating > --- WEAPON ----------- Subdweller Beam Cannon Subdweller Machine Gun > --- INVENTORY -------- Ion Engine Ion Engine Ion Engine Ion Engine Spiked Treads Aluminum Leg Aluminum Leg Wheel Hover Unit Hover Unit Hover Unit Hover Unit Subdweller Optics Improved Terrain Scanner Light Armor Plating Makeshift System Shield Medium Laser Heavy Assault Rifle Battle Rifle Grenade Launcher Grenade Launcher Grenade Launcher Grenade Launcher Plasma Flamer Scrap Shield Fragment [Rating: 16] Favorites ----------- Power Ion Engine Engine Ion Engine Propulsion Light Treads Treads Light Treads Leg Aluminum Leg Wheel Wheel Utility Huge Storage Unit Device Trap Extractor Storage Huge Storage Unit Protection Makeshift Light Armor Plating Weapon Medium Laser Energy Gun Medium Laser Energy Cannon Subdweller Beam Cannon Ballistic Gun Heavy Assault Rifle Launcher Grenade Launcher Build | -11 -10 -10 -10 ------- Run | Yrd Mat Min Sub Slots Evolved . | . . . . Power . | . . . . Propulsion . | . . . . Utility . | . . . . Weapon . | . . . . Parts Attached 32 | 2 13 2 15 Power 4 | . 1 . 3 Engine 4 | . 1 . 3 Core . | . . . . Reactor . | . . . . Propulsion 9 | 2 5 . 2 Treads 8 | 2 4 . 2 Leg . | . . . . Wheel 1 | . 1 . . Hover . | . . . . Flight . | . . . . Utility 5 | . 2 1 2 Device 2 | . 1 1 . Storage 1 | . 1 . . Processor . | . . . . Hackware . | . . . . Protection 2 | . . . 2 Artifact . | . . . . Weapon 14 | . 5 1 8 Energy Gun 2 | . . 1 1 Energy Cannon 2 | . . . 2 Ballistic Gun 8 | . 3 . 5 Ballistic Cannon . | . . . . Launcher 2 | . 2 . . Special Weapon . | . . . . Impact Weapon . | . . . . Slashing Weapon . | . . . . Piercing Weapon . | . . . . Special Melee Weapon . | . . . . Unidentified Prototypes . | . . . . Parts Lost 4 | . 1 1 2 Power . | . . . . Propulsion 3 | . 1 . 2 Utility . | . . . . Weapon 1 | . . 1 . Highest Loss Streak 2 | . 1 1 2 To Critical Strikes . | . . . . Average Slot Usage (%) 99 | . 99 100 99 Engine 13 | . 14 14 13 Treads 27 | . 26 28 28 Device 10 | . 13 14 3 Storage 14 | . 14 14 14 Protection 3 | . . . 10 Energy Gun 16 | . 14 22 15 Energy Cannon 2 | . . . 6 Ballistic Gun 9 | . 13 5 6 Peak Build Rating 16 | 6 11 12 16 Average Rating 11 | 6 10 11 13 On Entrance 8 | 6 6 11 12 Naked Turns . | . . . . Heaviest Build 101 | 13 92 92 101 Greatest Support 40 | 40 40 40 40 Greatest Overweight (x) 9 | . 9 2 2 Average Overweight (x) 2 | . 2 2 2 Largest Inventory Capacity 25 | 8 25 25 25 Average Capacity 24 | 8 24 25 25 Most Carried 25 | 6 25 25 25 Average Carried 23 | 6 21 24 24 Final Capacity 25 | 8 25 25 25 Final Carried 25 | 6 25 25 24 Class Distribution -------------------- 91% | Mutant 8% | Scavenger-Mutant Dominant Class ---------------- Mutant | -10/Materials Mutant | -10/Mines Mutant | -10/Subcaves Resources | -11 -10 -10 -10 ----------- Run | Yrd Mat Min Sub Matter Collected 846 | 220 304 87 235 Remotely . | . . . . Salvage Created 1307 | . 838 141 328 Parts 79 | . 48 8 23 Haulers Intercepted 2 | . 2 . . Recyclers Shooed 3 | . 3 . . Parts Field Recycled . | . . . . Retrieved Matter . | . . . . Parts Self-Destructed 9 | . . . 9 Prevented . | . . . . Kills | -11 -10 -10 -10 ------- Run | Yrd Mat Min Sub Combat Hostiles Destroyed 22 | . 9 5 8 Guns 18 | . 9 5 4 Cannons 3 | . . . 3 Classes Destroyed 9 | . 7 . 2 Worker 3 | . 2 1 . Hauler 2 | . 2 . . Recycler 4 | . 4 . . Mechanic 1 | . 1 . . Watcher 3 | . 3 . . Swarmer 7 | . 3 4 . Grunt 7 | . 6 1 . Cobbler 1 | . . . 1 Subdweller 8 | . . . 8 Best Kill Streak 6 | . 6 3 2 Combat Bots Only 3 | . 2 3 2 Max Kills in Single Turn 2 | . 2 1 1 Gunslinging . | . . . . Exploded . | . . . . Melee . | . . . . Uniques/NPCs Destroyed . | . . . . Combat | -11 -10 -10 -10 -------- Run | Yrd Mat Min Sub Hostile Shots Fired 172 | . 67 42 63 Missed 52 | . 17 16 19 Damage Taken 1628 | . 566 251 811 Core 268 | . 51 17 200 Absorbed by Shields . | . . . . Regen/Repaired (Parts) 157 | . 157 . . Core Remaining (%) 100 | 100 . . . Volleys Fired 115 | . 55 17 43 Largest 2 | . 2 2 2 Hottest 110 | . 80 90 110 Shots Fired 228 | . 109 35 84 Gun 207 | . 107 35 65 Cannon 19 | . . . 19 Launcher 2 | . 2 . . Special . | . . . . Kinetic 85 | . 53 13 19 Thermal 141 | . 54 22 65 Explosive 2 | . 2 . . Electromagnetic . | . . . . Robot Hit Streak 13 | . 12 6 13 Robot Miss Streak 4 | . 4 3 3 Penetration Max . | . . . . Secondary Targets 2 | . 1 1 . Max Gunslinging Chain 1 | . 1 1 . Shots Hit Robots 144 | . 61 20 63 Core Hits 60 | . 37 7 16 Critical Kills 1 | . 1 . . Critical Parts Destroyed . | . . . . Critical Strikes 7 | . 5 . 2 Burn 6 | . 4 . 2 Destroy 1 | . 1 . . Melee Attacks . | . . . . Impact . | . . . . Slashing . | . . . . Piercing . | . . . . Sneak Attacks . | . . . . Combat Hostiles . | . . . . Follow-up Attacks . | . . . . Damage Inflicted 2356 | . 929 291 1136 Guns 1966 | . 929 291 746 Cannons 390 | . . . 390 Explosions . | . . . . Melee . | . . . . Ramming . | . . . . Kinetic 879 | . 422 148 309 Thermal 1477 | . 507 143 827 Explosive . | . . . . Electromagnetic . | . . . . Impact . | . . . . Slashing . | . . . . Piercing . | . . . . Highest Corruption 1 | . 1 1 1 Average Corruption 1 | . 1 1 1 Corruption Purged . | . . . . Corruption Blocked . | . . . . Effects 47 | . 1 19 27 Message Errors 12 | . . 3 9 Matter Fused 12 | . . 6 6 Heat Flow Errors 3 | . 1 1 1 Energy Discharges 10 | . . 2 8 Data Loss (minor) 7 | . . 4 3 Data Loss (major) 2 | . . 2 . Misfires 1 | . . 1 . Overload Shots . | . . . . Overflow Damage . | . . . . Projectiles . | . . . . Explosions . | . . . . Melee . | . . . . Knockbacks . | . . . . Impact . | . . . . Kinetic . | . . . . Secondary . | . . . . Self-Inflicted Damage . | . . . . Shots . | . . . . Rammed . | . . . . Targets Rammed . | . . . . Kicked . | . . . . Crushed . | . . . . Highest Temperature 241 | . 241 162 121 Average Temperature 59 | . 73 55 11 Received Heat Transfer 375 | . 255 63 57 Siege Activations . | . . . . Robots Corrupted . | . . . . Combat Hostiles . | . . . . Parts Fried . | . . . . Impact Corruptions . | . . . . Robots Melted 1 | . . . 1 Combat Hostiles 1 | . . . 1 Parts Melted 5 | . 1 2 2 Heat Transferred 3966 | . 1776 383 1807 Parts Sabotaged . | . . . . Parts Stolen . | . . . . Parts Stripped . | . . . . Power Chain Reactions . | . . . . Alert | -11 -10 -10 -10 ------- Run | Yrd Mat Min Sub Peak Influence 129 | . 129 85 . Initial . | . . . . Average 33 | . 39 24 . Maximum Alert Level . | . . . . Low Security (%) 100 | 100 100 100 . Level 1 . | . . . . Level 2 . | . . . . Level 3 . | . . . . Level 4 . | . . . . Level 5 . | . . . . High Security . | . . . . Max Security . | . . . . Squads Dispatched 1 | . 1 . . Investigation 1 | . 1 . . Extermination . | . . . . Reinforcement . | . . . . Assault . | . . . . Garrison . | . . . . Intercept . | . . . . Searches Triggered . | . . . . Construction Impeded . | . . . . Haulers Reinforced . | . . . . Active Scanning Responses . | . . . . Cargo Convoy Interrupts . | . . . . Stealth | -11 -10 -10 -10 --------- Run | Yrd Mat Min Sub Distress Signals 2 | . 2 . . Communications Jammed . | . . . . Distress Signals . | . . . . Times Spotted 50 | . 29 9 12 Peak Tracking Total 3 | . 3 3 3 Tactical Retreats 11 | . 10 1 . Traps | -11 -10 -10 -10 ------- Run | Yrd Mat Min Sub Traps Triggered 2 | . 2 . . Indirectly . | . . . . Trap Hack Attempts . | . . . . Triggered . | . . . . Disarmed . | . . . . Reprogrammed . | . . . . Reused . | . . . . Traps Extracted . | . . . . Installed . | . . . . Triggered . | . . . . Machines | -11 -10 -10 -10 ---------- Run | Yrd Mat Min Sub Machines Disabled . | . . . . Max in Single Turn . | . . . . Machines Repaired . | . . . . Machines Dismantled . | . . . . Machines Sabotaged . | . . . . Overloaded Fab Kills . | . . . . Hacking | -11 -10 -10 -10 --------- Run | Yrd Mat Min Sub Machines Accessed 8 | . 8 . . Terminals 5 | . 5 . . Fabricators . | . . . . Repair Stations 1 | . 1 . . Recycling Units 2 | . 2 . . Scanalyzers . | . . . . Garrison Access . | . . . . Total Hacks 20 | . 20 . . Successful 15 | . 15 . . Failed 4 | . 4 . . Catastrophic 1 | . 1 . . Database Lockouts 1 | . 1 . . Manual 9 | . 9 . . Terminals 9 | . 9 . . Fabricators . | . . . . Repair Stations 6 | . 6 . . Recycling Units 5 | . 5 . . Scanalyzers . | . . . . Garrison Access . | . . . . Terminal Hacks 6 | . 6 . . Robot Analysis 3 | . 3 . . Prototype ID Bank 1 | . 1 . . Unreport Threat 1 | . 1 . . Recall Reinforcements 1 | . 1 . . Fabricator Hacks . | . . . . Repair Station Hacks 4 | . 4 . . Scan Component 2 | . 2 . . Repair 2 | . 2 . . Recycling Unit Hacks 1 | . 1 . . Retrieve Components 1 | . 1 . . Scanalyzer . | . . . . Garrison Access Hacks . | . . . . Unauthorized Hacks 4 | . 4 . . Terminals . | . . . . Fabricators . | . . . . Repair Stations . | . . . . Recycling Units 4 | . 4 . . Reject 2 | . 2 . . Mask 2 | . 2 . . Scanalyzers . | . . . . Garrison Access . | . . . . Data Cores Recovered . | . . . . Used . | . . . . Hacking Detections 5 | . 5 . . Full Trace Events . | . . . . Feedback Events . | . . . . Feedback Blocked . | . . . . Robot Schematics Acquired . | . . . . Robots Built . | . . . . Authchips . | . . . . Time . | . . . . Total Robot Build Rating . | . . . . Part Schematics Acquired . | . . . . Parts Built . | . . . . Authchips . | . . . . Time . | . . . . Total Part Build Rating . | . . . . Parts Repaired 2 | . 2 . . Time 52 | . 52 . . Parts Recycled . | . . . . Recycled Matter . | . . . . Retrieved Matter . | . . . . Retrieved Components 10 | . 10 . . Parts Scanalyzed . | . . . . Part Schematics Acquired . | . . . . Parts Damaged . | . . . . Bothacking | -11 -10 -10 -10 ------------ Run | Yrd Mat Min Sub Used RIF Installer . | . . . . Robots Hacked . | . . . . Non-combat . | . . . . Combat . | . . . . Robot Hacks Applied . | . . . . Relay Couplers Released . | . . . . Fabnet Peak Effective % . | . . . . Robots Rewired . | . . . . Allies Hacked . | . . . . Hacks Repelled . | . . . . Allies | -11 -10 -10 -10 -------- Run | Yrd Mat Min Sub Total Allies 3 | . . 3 . Largest Group 3 | . . 3 2 Highest-Rated Group 40 | . . 40 24 Highest-Rated Ally 16 | . . 16 16 Total Orders . | . . . . Ally Attacks 33 | . . 9 24 Total Damage 235 | . . 60 175 Kills 4 | . . 2 2 Allies Corrupted . | . . . . Allies Melted . | . . . . Intel | -11 -10 -10 -10 ------- Run | Yrd Mat Min Sub Robot Analysis Total 3 | . 3 . . Derelict Logs Recovered 2 | . . 2 . Drone Launches . | . . . . Drone Recoveries . | . . . . Exploration | -11 -10 -10 -10 ------------- Run | Yrd Mat Min Sub Turns Passed 7680 | 10 2945 1938 2787 Spaces Moved 2122 | 5 729 583 805 Core . | . . . . Treads 2099 | 5 706 583 805 Legs . | . . . . Wheels 23 | . 23 . . Hover . | . . . . Flight . | . . . . Fastest Speed 160 | 160 160 320 320 Average Speed 335 | 160 365 320 320 Slowest Speed 480 | 160 480 320 320 Overloaded Moves . | . . . . Propulsion Burnouts . | . . . . Robots Hopped . | . . . . Cave-ins Triggered . | . . . . Exploration Rate (%) 60 | 2 97 96 47 Regions Visited 3 Branch Regions 2 Pre-discovered Areas 1 | . . 1 . Known Exits Taken . | . . . . Unknown Exits Taken 3 | 1 1 1 . Scrap Searched 3 | . . 1 2 Spaces Dug 5 | . 5 . . Terrain Destroyed 11 | . 10 . 1 Melee . | . . . . Projectile 1 | . . . 1 AOE 10 | . 10 . . Terrain Rammed . | . . . . Walls Destroyed . | . . . . Machines Disabled . | . . . . Actions | -11 -10 -10 -10 --------- Run | Yrd Mat Min Sub Total 2473 | 6 906 624 937 Wait 141 | . 66 19 56 Move 2119 | 4 728 582 805 Hop . | . . . . Pick Up 38 | . 30 2 6 Fast Attach 6 | . 4 1 1 Attach 5 | . 1 1 3 Detach . | . . . . Swap 21 | 2 8 . 11 Drop 28 | . 14 2 12 Fire 115 | . 55 17 43 Melee . | . . . . Ram . | . . . . Kick . | . . . . Crush . | . . . . Escape Stasis . | . . . . Rewire . | . . . . Trap . | . . . . Miscellaneous . | . . . . Route ------- -11/Scrapyard -10/Materials (discovered 5 exits: [*Mat x3] / [*Min x2]) -10/Mines (discovered 3 exits: [*Mat x2] / [*Sub]) -10/Subcaves History --------- Turn | Location | Event 4 | -11/Scrapyard | Discovered new exit (range 3) 11 | -11/Scrapyard | Entered Materials 305 | -10/Materials | Build established: Mutant 661 | -10/Materials | Central database locked down 871 | -10/Materials | Discovered new exit (range 6) 1201 | -10/Materials | Discovered new exit (range 9) 1850 | -10/Materials | Discovered new exit (range 7) 1909 | -10/Materials | Repaired Lgt. Treads 1937 | -10/Materials | Repaired Lgt. Treads 2310 | -10/Materials | Discovered new exit (range 9) 2716 | -10/Materials | Discovered new exit (range 16) 2956 | -10/Materials | Entered Mines 3076 | -10/Mines | Discovered new exit (range 5) 3102 | -10/Mines | Assisted by bots powering up and referring to "LRC-V3" 3243 | -10/Mines | Learned 4 Materials zone layouts 3361 | -10/Mines | Discovered new exit (range 6) 3362 | -10/Mines | Learned location of Storage (-7) 3540 | -10/Mines | Learned 8 Materials zone layouts 4451 | -10/Mines | A weapon hastily lodged in a ceiling crevice suddenly fell to the ground 4869 | -10/Mines | Discovered new exit (range 6) 4894 | -10/Mines | Entered Subcaves 4894 | -10/Subcaves | Accompanied by 2 allies 4946 | -10/Subcaves | Curiously followed by a Cobbler waking with a query about "LVR3C" 5994 | -10/Subcaves | Disturbed a concealed Subdweller 6018 | -10/Subcaves | Core integrity fell below 50% 6883 | -10/Subcaves | Shifting Twisted Machinery released Unknown Ballistic Gun 7012 | -10/Subcaves | Core integrity fell below 20% 7040 | -10/Subcaves | Shifting Twisted Machinery released Mak. Flight Unit 7041 | -10/Subcaves | Shifting Twisted Machinery released Sub. Beam Cannon 7323 | -10/Subcaves | Build established: Scavenger-Mutant 7681 | -10/Subcaves | Destroyed by FO-U9G(R) with Subdweller Machine Gun Last Messages --------------- 07065_ S5-OSC(R) destroyed. 07078_ FM=WDOFEY#8OIQOC2:WE>HWPX 07080_ Dropped Sub. Beam Cannon. 07082_ Acquired 27 matter. 07088_ Dropped Ion Engine. 07093_ Dropped Scrap Shield Fragment. 07094_ Acquired Scrap Shield Fragment. 07117_ Acquired 3 matter. 07217_ System corrupted: Energy discharge (-76). 07269_ System corrupted: Matter fused (-10). 07306_ 3O:1X:8LBCOWVE8%VC%GPWVT 07326_ System corrupted: Matter fused (-8). 07450_ BB-J98(R) destroyed. 07454_ Sub. Power Source shoots sparks and powers down. 07454_ CI-R5K(R) affixes Scrap Shield Fragment to Scrap Shield. 07459_ CI-R5K(R) destroyed. 07497_ Acquired 31 matter. 07519_ Dropped Broken Sub. Power Source. 07527_ Acquired 10 matter. 07529_ System corrupted: Component data lost. Map ----- +----------------------------------------------------+ | | | | | | | | | | | ?????????????????????????????????????????????????? | | ?????????????????????????????????????????????????? | | ?????????????????????????????????????????????????? | | ?????????????????????????????????????????????????? | | ?????????????????????????????????????????????????? | | ?????????????????????????????????????????????????? | | ?????????????????????????????????????????????????? | | ?????????????????????????????????????????????????? | | ?????????????????????????????????????????????????? | | ?????????????????????????????????????????????????? | | ?????????????????????????????????????????????????? | | ?????????????????????????????????????????????????? | | ?????????????????????????????????????????????????? | | ?????????????????????????????????????????????????? | | ???????????????????????????###???????????????????? | | ???????? ???????????????## ##??????????????????? | | ???????? ??????????##### #??????????????????? | | ??????? #?????##?## ## ##?????????????????? | | ??????? #????# ## # ##????????????????? | | ??????? ##??# R #????????????????? | | ?????? ### @ ## #????????????????? | | ?????? #####??? ??????????????? | | ????? ##???????? ???????????? | | ?????? #?????????? ?????????? | | ?????? ### ## #??????????? ???????? | | ???????? ??????## ## #???????????? ???????? | | ????????????????### ## ???????????????????? | | ??????????????????# ### ### #?????????????????? | | ?????????????????## #??##??# #?????????????????? | | ?????????###?????# #??????? #?????????????????? | | ???????### ???## #???????? #?????????????????? | | ???????# ### ##????????? ?????????????????? | | ???????# ###????????? ????????????????? | | ????????# ## ##?????????????????????????? | | ?????????????### #?????????????????????????? | | ???????????????### ###"#??????????????????????? | | ?????????????????### # " #??????????????????????? | | ???????????????????## #??????????????????????? | | ????????????????????# & #??????????????????????? | | ????????????????????# " ##?##??????????????????? | | ???????????????????## " ## # #????????????????? | | ?????????????????### # ##????????????????? | | ??????????????#?## #????????????????? | | ?????????????? ## # """ ????????????? | | ??????????????# # ### """????????????? | +----------------------------------------------------+ Best States ------------- Heat Dissipation 25 Energy Generation 15 Energy Capacity 250 Matter Stores 300 Matter Capacity 300 Sight Range 16 Terrain Scan Range 16 Terrain Scan Density 10 Armor Coverage 150 Evasion (%) 40 Recoil Reduction 2 Trap Extractor Capacity 4 Item Schematics ----------------- None Robot Schematics ------------------ None Fabricated ------------ Nothing Alien Tech Used ----------------- None Achievements -------------- None Challenges ------------ None Game ------ Seed BraceProcessingLaser Manual? 0 Play Time 00:25:07 Cumulative 77.4 hours Start 2024.09.14 @ 16:57:38 End 2024.09.14 @ 17:22:22 Sessions 1 Manual Loads 0 Difficulty Rogue Special Mode None Game No. 100 Rogue 100 Adventurer 0 Explorer 0 Win Type - Total 1 Types 1/0/0/0/0/0/0/0/0 Lore% 17 Gallery% 54 Achievement% 43 Wizard Run 0 Options --------- Layout 0 ASCII 0 Keyboard 0 Movement Mouse Keybinds 1 Fullscreen 1 Font 18/TerminusBold Map View 76x50 Zoom Use 0% Tactical HUD 1 Map Filters NONE Filters NONE Steam 1 RUN: 8fb32227-8434-4929-8858-82b00c4f283b